[Event "Czech Juniors Boys 2024"]
[Site "Jaromerice nad Rokytnou"]
[Date "2024.03.13"]
[Round "8.1"]
[White "Lang, Simon"]
[Black "Frank, Adam"]
[Result "0-1"]
[ECO "B94"]
[WhiteElo "2043"]
[BlackElo "2284"]
[Annotator "RC"]
[PlyCount "120"]
[EventDate "2024.03.10"]
[EventType "tourn"]
[EventCountry "CZE"]
[SourceTitle "playchess.com"]
[Source "ChessBase"]
[SourceQuality "1"]
[TimeControl "40/5400+30:1800+30"]

1. e4 {[%emt 0:00:17]} c5 {[%emt 0:00:09]} 2. Nf3 {[%emt 0:00:42]} d6 {[%emt 0:00:05]} 3. d4 {[%emt 0:00:19]} cxd4 {[%emt 0:00:06]} 4. Nxd4 {[%emt 0:00:09]} Nf6 {[%emt 0:00:03]} 5. Nc3 {[%emt 0:00:43]} a6 {[%emt 0:00:04]} 6. Bg5 {[%emt 0:00:36]} Nbd7 {[%emt 0:00:06]} 7. f4 {[%emt 0:00:49]} Qc7 {[%emt 0:00:06]} 8. Qf3 {[%emt 0:00:28]} h6 {[%emt 0:00:06]} 9. Bxf6 {[%emt 0:02:10]} Nxf6 {[%emt 0:00:05]} 10. Be2 {[%emt 0:01:30]} e5 {[%emt 0:01:37]} 11. Nf5 {[%emt 0:05:20]} Bxf5 {[%emt 0:01:10]} 12. exf5 {[%emt 0:00:07]} Be7 {[%emt 0:00:03]} 13. O-O {[%emt 0:10:50]} O-O {[%emt 0:01:05]} 14. Kh1 {[%emt 0:00:26]} Rac8 {[%emt 0:04:45]} 15. Bd3 {[%emt 0:05:44]} Qb6 {[%emt 0:09:17]} 16. Rab1 {[%emt 0:16:29]} Rfe8 {[%emt 0:14:39]} 17. Be4 {[%emt 0:03:51]} Rc7 {[%emt 0:07:48]} 18. Rfe1 {[%emt 0:05:34]} Bf8 {[%emt 0:10:12]} 19. Nd5 {[%emt 0:07:57]} Nxd5 {[%emt 0:03:15]} 20. Bxd5 {[%emt 0:00:08]} Rxc2 {[%emt 0:12:05]} 21. Qh5 {[%emt 0:17:27]} Rc7 {[%emt 0:01:30]} 22. f6 {[%emt 0:00:39]} gxf6 {[%emt 0:00:11]} 23. Rbd1 {[%emt 0:02:44]} Bg7 {[%emt 0:04:00]} 24. f5 {[%emt 0:04:49]} Ree7 {[%emt 0:07:18]} 25. Re4 {[%emt 0:00:53]} Qxb2 {[%emt 0:00:52]} 26. h3 {[%emt 0:01:16]} Rc1 {[%emt 0:02:04]} 27. Rxc1 {[%emt 0:00:15]} Qxc1+ {[%emt 0:00:03]} 28. Kh2 {[%emt 0:00:07]} Qg5 {[%emt 0:01:56]} 29. Qf3 {[%emt 0:00:33]} h5 {[%emt 0:01:46]} 30. Rc4 {[%emt 0:01:25]} Bh6 {[%emt 0:04:26]} 31. h4 {[%emt 0:05:18]} Qe3 {[%emt 0:00:04]} 32. Rc8+ {[%emt 0:01:22]} Kg7 {[%emt 0:00:09]} 33. Rb8 {[%emt 0:01:16]} Qxf3 {[%emt 0:08:04]} 34. gxf3 {[%emt 0:01:09]} Bf4+ {[%emt 0:00:05]} 35. Kg2 {[%emt 0:00:13]} b5 {[%emt 0:02:05]} 36. Ra8 {[%emt 0:02:41]} Rc7 {[%emt 0:00:59]} 37. Rxa6 {[%emt 0:00:08]} Rc2+ {[%emt 0:00:13]} 38. Kf1 {[%emt 0:00:47]} Bg3 {[%emt 0:00:09]} 39. Rxd6 {[%emt 0:01:14]} Bxh4 {[%emt 0:00:39]} 40. Rd7 {[%emt 0:01:13]} Kh6 {[%emt 0:05:29]} 41. Rxf7 {[%emt 0:01:27]} Rb2 {[%emt 0:01:18]} 42. Rb7 {[%emt 0:03:24]} Kg5 {[%emt 0:01:01]} 43. Be4 {[%emt 0:04:02]} Bg3 {[%emt 0:14:48]} 44. Kg1 {[%emt 0:02:21]} h4 {[%emt 0:02:22]} 45. a4 {[%emt 0:05:08]} b4 {[%emt 0:01:47]} 46. a5 {[%emt 0:02:27]} b3 {[%emt 0:06:48]} 47. a6 {[%emt 0:03:19]} Ra2 {[%emt 0:00:03]} 48. Rxb3 {[%emt 0:00:39]} Rxa6 {[%emt 0:00:04]} 49. Rb7 {[%emt 0:04:45]} Ra1+ {[%emt 0:01:03]} 50. Kg2 {[%emt 0:00:54]} Ra2+ {[%emt 0:00:05]} 51. Kg1 {[%emt 0:00:07]} Kf4 {[%emt 0:00:17]} 52. Rg7 {[%emt 0:01:02]} Ke3 {[%emt 0:00:17]} 53. Rg6 {[%emt 0:00:55]} Bf4 {[%emt 0:00:26]} 54. Rxf6 {[%emt 0:01:19]} h3 {[%emt 0:00:24]} 55. Rb6 {[%emt 0:00:14]} Rg2+ {[%emt 0:00:37]} 56. Kh1 {[%emt 0:01:23]} Kf2 {[%emt 0:00:26]} 57. Rb2+ {[%emt 0:00:57]} Kg3 {[%emt 0:00:06]} 58. Rb8 {[%emt 0:03:11]} Be3 {[%emt 0:02:35]} 59. Rg8+ {[%emt 0:00:11]} Kf2 {[%emt 0:00:04]} 60. Rg6 {[%emt 0:00:37]} Bf4 {[%emt 0:00:11]} 0-1

[Event "Czech Juniors Boys 2024"]
[Site "Jaromerice nad Rokytnou"]
[Date "2024.03.13"]
[Round "8.2"]
[White "Jares, Michal"]
[Black "Hak, David"]
[Result "1-0"]
[ECO "D11"]
[WhiteElo "2347"]
[BlackElo "2283"]
[Annotator "TA"]
[PlyCount "75"]
[EventDate "2024.03.10"]
[EventType "tourn"]
[EventCountry "CZE"]
[SourceTitle "playchess.com"]
[Source "ChessBase"]
[SourceQuality "1"]
[TimeControl "40/5400+30:1800+30"]

{[%evp 11,75,13,4,8,3,1,47,46,58,52,54,57,58,25,34,39,24,43,58,34,38,-16,-27,-32,-31,-51,-26,-23,99,109,116,112,108,104,472,409,456,460,466,494,496,460,454,390,1448,172,150,164,279,213,578,519,395,-191,528,523,1097,1045,29992,818,29991,29992,29992,29990,29990,845]} 1. Nf3 {[%emt 0:00:03]} d5 {[%emt 0:00:07]} 2. g3 {[%emt 0:00:02]} c6 {[%emt 0:00:58]} 3. Bg2 {[%emt 0:00:08]} Bg4 {[%emt 0:00:08]} 4. O-O {[%emt 0:00:45]} Nd7 {[%emt 0:00:34]} 5. d4 {[%emt 0:00:22]} e6 {[%emt 0:00:18]} 6. c4 {[%emt 0:00:22]} Ngf6 {[%emt 0:03:36]} 7. h3 {[%emt 0:02:02]} Bf5 {[%emt 0:00:33]} 8. Nc3 {[%emt 0:01:39]} Ne4 {[%emt 0:02:01]} (8... dxc4 $11 {was preferrable.} 9. Nh4 Bg6) 9. Nh4 $14 {[%emt 0:10:04] White is slightly better.} Nxc3 {[%emt 0:03:58]} 10. bxc3 {[%emt 0:00:16]} Be4 {[%emt 0:00:24]} 11. f3 {[%emt 0:02:51]} Bg6 {[%emt 0:01:15]} 12. cxd5 {[%emt 0:01:25]} (12. e4 {keeps more tension.} Qc7 13. exd5 Qxg3 14. Nxg6 hxg6 15. dxe6 fxe6 16. Qe1) 12... cxd5 {[%emt 0:02:35]} 13. Nxg6 {[%emt 0:01:19]} hxg6 {[%emt 0:00:13]} 14. e4 {[%emt 0:00:27] Hoping for exd5.} Nb6 {[%emt 0:11:39]} 15. Qb3 {[%emt 0:05:50]} Qc7 {[%emt 0:11:01]} 16. f4 {[%emt 0:05:17]} (16. exd5 $14 Nxd5 17. c4) 16... dxe4 $11 {[%emt 0:05:35]} 17. Bxe4 {[%emt 0:01:32]} Rxh3 {[%emt 0:03:38]} 18. Kg2 {[%emt 0:03:39]} Rh8 {[%emt 0:06:54][%cal Bh3h8,Bh8h5,Bh5d5,Bd5b5][%mdl 32]} 19. Be3 {[%emt 0:04:20]} O-O-O {[%emt 0:09:20] [#]} (19... Be7 $11 {remains equal.}) 20. c4 $1 $16 {[%emt 0:05:17][%cal Bc3c4,Bc4c5,Bc5c6][%mdl 1056] White has strong compensation. Active counter play!} Kb8 {[%emt 0:01:49] [#]} (20... Qxc4 $2 21. Rac1 $18) (20... Nxc4 $2 21. Rfc1 Kd7 (21... b5 $2 22. Qxb5 $18) 22. Rxc4 $18) (20... Be7 21. a4) 21. Rfc1 {[%emt 0:03:28]} Be7 {[%emt 0:14:42]} 22. a4 {[%emt 0:00:29][%cal Ba2a4,Ba4a5][%mdl 32] Threatens to win with a5.} Nc8 $2 {[%emt 0:07:04][%mdl 8192]} (22... a5 $16 {is tougher.}) 23. c5 {[%emt 0:02:31]} Rh5 {[%emt 0:05:23]} 24. Rab1 {[%emt 0:00:48][%cal Rb3b7]} Rhd5 {[%emt 0:02:23]} 25. a5 {[%emt 0:00:27]} a6 {[%emt 0:01:46]} 26. c6 {[%emt 0:01:35]} Nd6 {[%emt 0:04:20] And now ...Rb5 would win.} 27. cxb7 {[%emt 0:06:35]} Qxa5 {[%emt 0:00:22]} (27... Rb5 28. Rxc7 Rxb3) 28. Bf3 $2 {[%emt 0:06:57]} (28. Bxd5 Qxd5+ 29. Qxd5 exd5 $16) (28. Qc2 Ka7 29. Bd2) 28... Rb5 $18 {[%emt 0:00:56]} 29. Qc2 {[%emt 0:00:57] Ra1 is the strong threat. The board is on fire.} Nxb7 {[%emt 0:00:55]} (29... Rxb1 $142 30. Qxb1 (30. Rxb1 Qf5 $16) 30... Nf5) 30. Bxb7 {[%emt 0:25:51]} Kxb7 $2 {[%emt 0:00:01]} (30... Rxb7 {is more resistant.} 31. Rxb7+ Kxb7) 31. Qc6+ {[%emt 0:00:09]} Kb8 {[%emt 0:00:08]} 32. Rxb5+ $4 {[%emt 0:00:25][%mdl 8192]} (32. d5 $18 {is the narrow road to win. White wants to mate with Ra1.} Bd6 (32... Rdxd5 33. Qc8#) (32... exd5 $2 33. Ra1 $18) (32... Qa2+ $2 33. Kg1 $18) 33. Kg1) 32... axb5 $4 {[%emt 0:00:05][%mdl 8192] [#]} (32... Qxb5 $19 33. Qc7+ Ka8) 33. d5 $1 {[%emt 0:00:34][%mdl 512] aiming for Bb6.} Rh8 {[%emt 0:01:46]} (33... b4 34. d6) 34. d6 {[%emt 0:03:05]} Bf6 {[%emt 0:00:30]} 35. d7 {[%emt 0:00:53]} (35. Rc5 $142 Bd4 36. Rxb5+ (36. Bxd4 Qd2+ 37. Bf2 Rh2+ 38. Kxh2 Qxf2+ 39. Kh3 Qf1+ 40. Kh4 g5+ 41. fxg5 Ka7) 36... Qxb5 37. Qxb5+ Kc8 38. Bxd4 Rh2+ 39. Kxh2 f6 40. Qc6+ Kb8 41. Qc7+ Ka8 42. Qc8#) 35... Qa2+ {[%emt 0:00:23]} 36. Kf1 {[%emt 0:00:36] White mates.} Bc3 {[%emt 0:00:38]} 37. Qb6+ {[%emt 0:00:32]} Ka8 {[%emt 0:00:09]} 38. d8=Q+ {[%emt 0:00:04] Weighted Error Value: White=0.37/Black=0.98.  Loses game:     	---       	Black=1      Missed win:     	White=1     	Black=1      Mistake:       	White=2     	Black=5      Inaccurate:     	White=1     	Black=2      OK:         	White=12    	Black=8      Best:        	---       	Black=3      Brilliant:      	White=1     	---} ({Inferior is} 38. d8=B Rh1+ 39. Bg1 Qc4+ 40. Kg2 Qd5+ 41. Kf1 Rxg1+ 42. Qxg1 Qd3+ (42... Qf3+ 43. Qf2 $11) 43. Kg2 Qxd8 $11) 1-0

[Event "Czech Juniors Boys 2024"]
[Site "Jaromerice nad Rokytnou"]
[Date "2024.03.13"]
[Round "8.3"]
[White "Jun, Rudolf"]
[Black "Bohacek, Jan Andrej"]
[Result "1/2-1/2"]
[ECO "B13"]
[WhiteElo "2243"]
[BlackElo "2140"]
[Annotator "RC"]
[PlyCount "117"]
[EventDate "2024.03.10"]
[EventType "tourn"]
[EventCountry "CZE"]
[SourceTitle "playchess.com"]
[Source "ChessBase"]
[SourceQuality "1"]
[TimeControl "40/5400+30:1800+30"]

1. e4 {[%emt 0:00:03]} c6 {[%emt 0:00:07]} 2. d4 {[%emt 0:00:08]} d5 {[%emt 0:00:05]} 3. exd5 {[%emt 0:00:06]} cxd5 {[%emt 0:00:05]} 4. Nf3 {[%emt 0:00:13]} Nc6 {[%emt 0:00:18]} 5. Bd3 {[%emt 0:01:14]} Bg4 {[%emt 0:00:30]} 6. c3 {[%emt 0:00:11]} e6 {[%emt 0:00:10]} 7. h3 {[%emt 0:00:28]} Bh5 {[%emt 0:00:30]} 8. Bf4 {[%emt 0:00:12]} Bd6 {[%emt 0:00:54]} 9. Bxd6 {[%emt 0:00:42]} Qxd6 {[%emt 0:00:08]} 10. Nbd2 {[%emt 0:00:21]} Bg6 {[%emt 0:03:00]} 11. Bxg6 {[%emt 0:00:31]} hxg6 {[%emt 0:00:08]} 12. Qe2 {[%emt 0:01:21]} Nf6 {[%emt 0:04:58]} 13. Ne5 {[%emt 0:01:38]} O-O {[%emt 0:06:16]} 14. g3 {[%emt 0:04:14]} b5 {[%emt 0:17:29]} 15. O-O {[%emt 0:06:00]} Rab8 {[%emt 0:10:56]} 16. a3 {[%emt 0:01:48]} Rfc8 {[%emt 0:02:59]} 17. Kg2 {[%emt 0:00:24]} a5 {[%emt 0:02:32]} 18. h4 {[%emt 0:04:33]} Qd8 {[%emt 0:04:04]} 19. Rh1 {[%emt 0:01:51]} b4 {[%emt 0:02:35]} 20. axb4 {[%emt 0:00:12]} axb4 {[%emt 0:00:25]} 21. Ra6 {[%emt 0:02:10]} Rb6 {[%emt 0:02:59]} 22. Rha1 {[%emt 0:01:15]} bxc3 {[%emt 0:03:14]} 23. bxc3 {[%emt 0:00:17]} Nxe5 {[%emt 0:03:45]} 24. dxe5 {[%emt 0:00:40]} Nd7 {[%emt 0:00:28]} 25. h5 {[%emt 0:02:47]} Rxa6 {[%emt 0:05:06]} 26. Rxa6 {[%emt 0:00:22]} gxh5 {[%emt 0:00:43]} 27. Qxh5 {[%emt 0:01:10]} g6 {[%emt 0:00:53]} 28. Qe2 {[%emt 0:01:21]} Rxc3 {[%emt 0:00:39]} 29. Ra7 {[%emt 0:04:20]} Rc7 {[%emt 0:03:18]} 30. Ra1 {[%emt 0:01:00]} Qb8 {[%emt 0:02:44]} 31. Nf3 {[%emt 0:03:25]} Nc5 {[%emt 0:07:03]} 32. Ng5 {[%emt 0:03:11]} d4 {[%emt 0:09:23]} 33. Qf3 {[%emt 0:00:05]} Qb7 {[%emt 0:00:15]} 34. Ra8+ {[%emt 0:00:40]} Kg7 {[%emt 0:00:15]} 35. Rd8 {[%emt 0:01:09]} d3 {[%emt 0:00:33]} 36. Qxb7 {[%emt 0:01:22]} Rxb7 {[%emt 0:00:07]} 37. f4 {[%emt 0:03:22]} Rb3 {[%emt 0:07:02]} 38. Kf2 {[%emt 0:01:49]} Na4 {[%emt 0:02:08]} 39. Ne4 {[%emt 0:01:13]} Nb2 {[%emt 0:00:38]} 40. Nf6 {[%emt 0:01:03]} d2 {[%emt 0:00:34]} 41. Rxd2 {[%emt 0:38:32]} Rb8 {[%emt 0:04:36]} 42. Kf3 {[%emt 0:00:00]} Nc4 {[%emt 0:01:15]} 43. Rh2 {[%emt 0:00:00]} Rh8 {[%emt 0:03:57]} 44. Ra2 {[%emt 0:00:00]} Rb8 {[%emt 0:04:11]} 45. Ra4 {[%emt 0:00:00]} Rb3+ {[%emt 0:01:47]} 46. Kf2 {[%emt 0:00:00]} Rb2+ {[%emt 0:01:12]} 47. Ke1 {[%emt 0:00:00]} Ne3 {[%emt 0:01:09]} 48. Ra8 {[%emt 0:00:00]} Ng2+ {[%emt 0:02:27]} 49. Kd1 {[%emt 0:00:00]} Ne3+ {[%emt 0:00:28]} 50. Kc1 {[%emt 0:00:00]} Rc2+ {[%emt 0:00:12]} 51. Kb1 {[%emt 0:00:00]} Rg2 {[%emt 0:00:14]} 52. Rg8+ {[%emt 0:00:00]} Kh6 {[%emt 0:00:09]} 53. Rh8+ {[%emt 0:00:00]} Kg7 {[%emt 0:00:11]} 54. Rh3 {[%emt 0:00:00]} Kf8 {[%emt 0:00:39]} 55. Nh7+ {[%emt 0:00:00]} Kg8 {[%emt 0:00:44]} 56. Nf6+ {[%emt 0:00:00]} Kg7 {[%emt 0:01:19]} 57. Ne4 {[%emt 0:00:00]} Nf1 {[%emt 0:02:59]} 58. Kc1 {[%emt 0:00:00]} Ne3 {[%emt 0:01:00]} 59. Nf6 {[%emt 0:00:07]} 1/2-1/2

[Event "Czech Juniors Boys 2024"]
[Site "Jaromerice nad Rokytnou"]
[Date "2024.03.13"]
[Round "8.4"]
[White "Seidl, Jan"]
[Black "Bokhnak, Timofey"]
[Result "1/2-1/2"]
[ECO "E16"]
[WhiteElo "2230"]
[BlackElo "2241"]
[Annotator "RC"]
[PlyCount "70"]
[EventDate "2024.03.10"]
[EventType "tourn"]
[EventCountry "CZE"]
[SourceTitle "playchess.com"]
[Source "ChessBase"]
[SourceQuality "1"]
[TimeControl "40/5400+30:1800+30"]

1. d4 {[%emt 0:00:02]} Nf6 {[%emt 0:00:17]} 2. c4 {[%emt 0:00:23]} e6 {[%emt 0:00:04]} 3. g3 {[%emt 0:00:09]} d5 {[%emt 0:00:26]} 4. Bg2 {[%emt 0:00:06]} Bb4+ {[%emt 0:00:49]} 5. Nd2 {[%emt 0:00:11]} O-O {[%emt 0:00:09]} 6. Ngf3 {[%emt 0:00:54]} b6 {[%emt 0:00:35]} 7. O-O {[%emt 0:00:42]} Bb7 {[%emt 0:00:23]} 8. a3 {[%emt 0:00:46]} Be7 {[%emt 0:00:08]} 9. cxd5 {[%emt 0:00:47]} exd5 {[%emt 0:03:48]} 10. b4 {[%emt 0:00:16]} a5 {[%emt 0:00:26]} 11. b5 {[%emt 0:00:18]} c6 {[%emt 0:00:15]} 12. Qb3 {[%emt 0:01:08]} cxb5 {[%emt 0:02:36]} 13. Qxb5 {[%emt 0:00:17]} Ba6 {[%emt 0:03:00]} 14. Qb2 {[%emt 0:00:28]} Bxe2 {[%emt 0:04:32]} 15. Re1 {[%emt 0:00:08]} Ba6 {[%emt 0:04:46]} 16. Ne5 {[%emt 0:00:20]} Bd6 {[%emt 0:03:53]} 17. Ndc4 {[%emt 0:15:15]} Bc7 {[%emt 0:17:10]} 18. Ne3 {[%emt 0:05:11]} Bb7 {[%emt 0:02:13]} 19. Nf5 {[%emt 0:06:31]} Ne4 {[%emt 0:05:18]} 20. Qe2 {[%emt 0:14:32]} Qf6 {[%emt 0:10:28]} 21. Ne3 {[%emt 0:10:08]} Qe6 {[%emt 0:02:36]} 22. f4 {[%emt 0:06:29]} f5 {[%emt 0:05:14]} 23. Bb2 {[%emt 0:01:30]} Nd7 {[%emt 0:00:31]} 24. Rec1 {[%emt 0:03:44]} Ba6 {[%emt 0:02:20]} 25. Qd1 {[%emt 0:00:29]} Bd6 {[%emt 0:04:18]} 26. Qb3 {[%emt 0:05:20]} Bb7 {[%emt 0:03:05]} 27. a4 {[%emt 0:09:47]} Bb4 {[%emt 0:09:20]} 28. Rc7 {[%emt 0:01:17]} Nxe5 {[%emt 0:00:28]} 29. fxe5 {[%emt 0:02:09]} Rab8 {[%emt 0:01:05]} 30. Nxf5 {[%emt 0:03:05]} Qxf5 {[%emt 0:07:54]} 31. Rf1 {[%emt 0:01:23]} Qg6 {[%emt 0:01:02]} 32. Rxb7 {[%emt 0:01:10]} Rxb7 {[%emt 0:03:54]} 33. Qxd5+ {[%emt 0:00:09]} Rbf7 {[%emt 0:00:13]} 34. Rxf7 {[%emt 0:01:43]} Qxf7 {[%emt 0:00:20]} 35. Bxe4 {[%emt 0:00:46]} g6 {[%emt 0:01:34]} 1/2-1/2

[Event "Czech Juniors Boys 2024"]
[Site "Jaromerice nad Rokytnou"]
[Date "2024.03.13"]
[Round "8.5"]
[White "Soucek, Petr"]
[Black "Paseka, Matyas"]
[Result "1/2-1/2"]
[ECO "E63"]
[WhiteElo "2209"]
[BlackElo "2233"]
[Annotator "RC"]
[PlyCount "107"]
[EventDate "2024.03.10"]
[EventType "tourn"]
[EventCountry "CZE"]
[SourceTitle "playchess.com"]
[Source "ChessBase"]
[SourceQuality "1"]
[TimeControl "40/5400+30:1800+30"]

1. c4 {[%emt 0:00:13]} Nf6 {[%emt 0:00:07]} 2. d4 {[%emt 0:00:04]} g6 {[%emt 0:00:05]} 3. Nf3 {[%emt 0:00:51]} Bg7 {[%emt 0:00:06]} 4. g3 {[%emt 0:00:04]} O-O {[%emt 0:00:19]} 5. Bg2 {[%emt 0:00:04]} d6 {[%emt 0:00:07]} 6. Nc3 {[%emt 0:00:04]} Nc6 {[%emt 0:00:07]} 7. O-O {[%emt 0:00:34]} a6 {[%emt 0:00:19]} 8. b3 {[%emt 0:02:21]} Rb8 {[%emt 0:00:18]} 9. Bg5 {[%emt 0:01:12]} h6 {[%emt 0:01:01]} 10. Bxf6 {[%emt 0:08:03]} Bxf6 {[%emt 0:00:08]} 11. e3 {[%emt 0:01:42]} b5 {[%emt 0:12:02]} 12. cxb5 {[%emt 0:02:25]} axb5 {[%emt 0:00:07]} 13. Rc1 {[%emt 0:04:32]} Nb4 {[%emt 0:01:54]} 14. a3 {[%emt 0:05:02]} Na6 {[%emt 0:00:33]} 15. b4 {[%emt 0:00:47]} Bd7 {[%emt 0:06:26]} 16. Qe2 {[%emt 0:03:43]} Bg7 {[%emt 0:02:17]} 17. Rfd1 {[%emt 0:02:25]} e6 {[%emt 0:04:14]} 18. e4 {[%emt 0:08:32]} Qe7 {[%emt 0:01:31]} 19. e5 {[%emt 0:03:51]} d5 {[%emt 0:02:20]} 20. Bf1 {[%emt 0:04:17]} c6 {[%emt 0:01:43]} 21. Nb1 {[%emt 0:03:19]} Nc7 {[%emt 0:01:03]} 22. Nbd2 {[%emt 0:02:14]} Na8 {[%emt 0:07:38]} 23. Nb3 {[%emt 0:01:00]} Nb6 {[%emt 0:00:30]} 24. Qe3 {[%emt 0:01:00]} Rfc8 {[%emt 0:04:20]} 25. h4 {[%emt 0:02:51]} Ra8 {[%emt 0:12:15]} 26. Ra1 {[%emt 0:02:24]} Ra7 {[%emt 0:01:20]} 27. Nfd2 {[%emt 0:09:01]} Rca8 {[%emt 0:01:06]} 28. Na5 {[%emt 0:01:36]} Rxa5 {[%emt 0:00:57]} 29. bxa5 {[%emt 0:00:06]} Rxa5 {[%emt 0:00:13]} 30. Nb3 {[%emt 0:02:37]} Ra7 {[%emt 0:08:12]} 31. Nc5 {[%emt 0:03:10]} Bf8 {[%emt 0:00:43]} 32. Bd3 {[%emt 0:02:49]} Be8 {[%emt 0:01:29]} 33. Bc2 {[%emt 0:00:56]} Nc4 {[%emt 0:01:00]} 34. Qe2 {[%emt 0:05:22]} Qc7 {[%emt 0:07:11]} 35. a4 {[%emt 0:01:55]} Bxc5 {[%emt 0:01:05]} 36. dxc5 {[%emt 0:00:31]} bxa4 {[%emt 0:01:51]} 37. Re1 {[%emt 0:08:22]} Qe7 {[%emt 0:06:31]} 38. Bd3 {[%emt 0:01:16]} Na5 {[%emt 0:00:24]} 39. Rxa4 {[%emt 0:01:36]} Nb3 {[%emt 0:02:35]} 40. Rxa7 {[%emt 0:01:08]} Qxa7 {[%emt 0:00:06]} 41. Qe3 {[%emt 0:32:43]} Qxc5 {[%emt 0:19:44]} 42. Bxg6 {[%emt 0:00:00]} Qxe3 {[%emt 0:00:16]} 43. Rxe3 {[%emt 0:00:00]} Nd4 {[%emt 0:00:09]} 44. Bh5 {[%emt 0:00:00]} c5 {[%emt 0:00:13]} 45. Ra3 {[%emt 0:00:00]} c4 {[%emt 0:13:33]} 46. Bd1 {[%emt 0:00:00]} Kg7 {[%emt 0:00:53]} 47. f4 {[%emt 0:00:00]} Nb5 {[%emt 0:02:58]} 48. Ra8 {[%emt 0:00:00]} Nc3 {[%emt 0:00:12]} 49. Bf3 {[%emt 0:00:00]} Ba4 {[%emt 0:01:50]} 50. Kf2 {[%emt 0:00:00]} Bd1 {[%emt 0:01:40]} 51. Rc8 {[%emt 0:00:00]} h5 {[%emt 0:02:25]} 52. Rc7 {[%emt 0:01:36]} Bxf3 {[%emt 0:00:33]} 53. Kxf3 {[%emt 0:00:05]} Nb5 {[%emt 0:00:03]} 54. Rc5 {[%emt 0:00:53]} 1/2-1/2

[Event "Czech Juniors Boys 2024"]
[Site "Jaromerice nad Rokytnou"]
[Date "2024.03.13"]
[Round "8.6"]
[White "Vilimek, Vit"]
[Black "Skypala, Ondrej"]
[Result "0-1"]
[ECO "B33"]
[WhiteElo "2061"]
[BlackElo "2234"]
[Annotator "RC"]
[PlyCount "162"]
[EventDate "2024.03.10"]
[EventType "tourn"]
[EventCountry "CZE"]
[SourceTitle "playchess.com"]
[Source "ChessBase"]
[SourceQuality "1"]
[TimeControl "40/5400+30:1800+30"]

1. e4 {[%emt 0:00:02]} c5 {[%emt 0:00:03]} 2. Nf3 {[%emt 0:00:08]} Nc6 {[%emt 0:00:04]} 3. d4 {[%emt 0:00:04]} cxd4 {[%emt 0:00:03]} 4. Nxd4 {[%emt 0:00:04]} Nf6 {[%emt 0:00:05]} 5. Nc3 {[%emt 0:00:04]} e5 {[%emt 0:00:03]} 6. Ndb5 {[%emt 0:00:03]} d6 {[%emt 0:00:04]} 7. Bg5 {[%emt 0:00:04]} a6 {[%emt 0:00:04]} 8. Na3 {[%emt 0:00:03]} b5 {[%emt 0:00:03]} 9. Nab1 {[%emt 0:00:08]} Be6 {[%emt 0:11:35]} 10. a4 {[%emt 0:02:07]} b4 {[%emt 0:02:03]} 11. Nd5 {[%emt 0:00:14]} Be7 {[%emt 0:06:04]} 12. Bxf6 {[%emt 0:00:05]} Bxf6 {[%emt 0:00:06]} 13. Bc4 {[%emt 0:00:51]} O-O {[%emt 0:01:33]} 14. O-O {[%emt 0:01:16]} Bg5 {[%emt 0:03:17]} 15. Qd3 {[%emt 0:00:26]} a5 {[%emt 0:01:44]} 16. c3 {[%emt 0:01:02]} bxc3 {[%emt 0:00:43]} 17. bxc3 {[%emt 0:00:04]} Kh8 {[%emt 0:03:20]} 18. Na3 {[%emt 0:02:13]} f5 {[%emt 0:02:18]} 19. f3 {[%emt 0:00:16]} Nb8 {[%emt 0:09:13]} 20. Bb5 {[%emt 0:04:53]} Nd7 {[%emt 0:03:46]} 21. Bxd7 {[%emt 0:03:31]} Qxd7 {[%emt 0:00:57]} 22. Nb5 {[%emt 0:00:28]} Rad8 {[%emt 0:09:49]} 23. Nbc7 {[%emt 0:09:08]} fxe4 {[%emt 0:03:38]} 24. fxe4 {[%emt 0:01:03]} Bg8 {[%emt 0:00:50]} 25. h3 {[%emt 0:04:09]} Rf7 {[%emt 0:01:11]} 26. Rf2 Rxf2 {[%emt 0:00:29]} 27. Qe2 {[%emt 0:03:09]} Rf1+ 28. Qxf1 {[%emt 0:01:01]} Rc8 {[%emt 0:05:26]} 29. Nb5 {[%emt 0:03:11]} Qc6 {[%emt 0:03:24]} 30. Qf5 {[%emt 0:04:35]} Qc5+ {[%emt 0:10:09]} 31. Kh1 {[%emt 0:00:48]} h6 {[%emt 0:01:17]} 32. Nxd6 {[%emt 0:07:45]} Rb8 {[%emt 0:00:26]} 33. Nf7+ {[%emt 0:01:15]} Bxf7 {[%emt 0:00:06]} 34. Qxf7 {[%emt 0:00:03]} Rf8 {[%emt 0:08:13]} 35. Qe6 {[%emt 0:01:58]} Qc4 {[%emt 0:05:43]} 36. Qxe5 {[%emt 0:03:17]} Rf2 {[%emt 0:01:49]} 37. Re1 {[%emt 0:23:15]} Bh4 {[%emt 0:02:22]} 38. Ne3 {[%emt 0:07:53]} Qxa4 {[%emt 0:01:40]} 39. Rb1 {[%emt 0:10:30]} Qa2 {[%emt 0:01:25]} 40. Rb8+ {[%emt 0:06:42]} Kh7 {[%emt 0:01:05]} 41. Rb7 {[%emt 0:31:27]} Bf6 {[%emt 0:31:06]} 42. Qg3 {[%emt 0:01:11]} Bxc3 {[%emt 0:00:55]} 43. Kh2 {[%emt 0:00:00]} Rf7 {[%emt 0:00:00]} 44. Rb6 {[%emt 0:00:00]} Qf2 {[%emt 0:00:00]} 45. Qg6+ {[%emt 0:00:00]} Kh8 {[%emt 0:00:00]} 46. Rb8+ {[%emt 0:00:00]} Rf8 {[%emt 0:00:00]} 47. Qd6 {[%emt 0:00:00]} Bb4 {[%emt 0:00:00]} 48. Rxf8+ {[%emt 0:00:34]} Qxf8 {[%emt 0:00:00]} 49. Qxf8+ {[%emt 0:01:35]} Bxf8 {[%emt 0:00:00]} 50. Nd5 {[%emt 0:00:03]} Bd6+ {[%emt 0:00:00]} 51. Kg1 {[%emt 0:00:08]} a4 {[%emt 0:00:00]} 52. Nc3 {[%emt 0:00:12]} a3 {[%emt 0:00:00]} 53. Kf2 {[%emt 0:00:06]} Kg8 {[%emt 0:00:00]} 54. Ke3 {[%emt 0:00:50]} Kf7 {[%emt 0:00:00]} 55. Kd4 {[%emt 0:01:18]} Ke6 {[%emt 0:00:00]} 56. Na2 {[%emt 0:00:02]} Be5+ {[%emt 0:00:00]} 57. Kc4 {[%emt 0:01:11]} Bf6 {[%emt 0:00:00]} 58. Kd3 {[%emt 0:01:39]} Ke5 {[%emt 0:00:00]} 59. g3 {[%emt 0:00:19]} Kd6 {[%emt 0:00:00]} 60. Kc4 {[%emt 0:01:33]} Ke5 {[%emt 0:00:00]} 61. Kd3 {[%emt 0:00:03]} Be7 {[%emt 0:00:00]} 62. Ke3 {[%emt 0:00:59]} Bd6 {[%emt 0:00:00]} 63. Nc1 {[%emt 0:00:26]} Bc5+ {[%emt 0:00:00]} 64. Kd3 {[%emt 0:00:07]} Bf2 {[%emt 0:00:00]} 65. g4 {[%emt 0:00:31]} Bh4 {[%emt 0:00:00]} 66. Na2 {[%emt 0:00:42]} Bf6 {[%emt 0:00:00]} 67. Ke3 {[%emt 0:00:30]} Bg5+ {[%emt 0:00:00]} 68. Kd3 {[%emt 0:00:34]} Kf4 {[%emt 0:00:00]} 69. Nb4 {[%emt 0:00:25]} Bf6 {[%emt 0:00:00]} 70. Na2 {[%emt 0:00:15]} Kg3 {[%emt 0:00:00]} 71. Ke3 {[%emt 0:00:02]} Be5 {[%emt 0:00:00]} 72. Nb4 {[%emt 0:00:35]} Kxh3 {[%emt 0:00:00]} 73. Kf3 {[%emt 0:00:01]} Kh4 {[%emt 0:00:00]} 74. Na2 {[%emt 0:00:01]} g5 {[%emt 0:00:00]} 75. Nb4 {[%emt 0:00:17]} h5 {[%emt 0:00:00]} 76. gxh5 {[%emt 0:00:04]} g4+ {[%emt 0:00:00]} 77. Ke3 {[%emt 0:00:17]} Kxh5 {[%emt 0:00:00]} 78. Kf2 {[%emt 0:00:40]} Kg5 {[%emt 0:00:00]} 79. Ke3 {[%emt 0:00:07]} Kh4 {[%emt 0:00:00]} 80. Kf2 {[%emt 0:00:02]} Kh3 {[%emt 0:00:00]} 81. Kg1 {[%emt 0:00:18]} Bd4+ {[%emt 0:00:02]} 0-1